bitfinex/quotes_ETHUSD_20240824
["timestamp","ask_amount","ask_price","bid_price","bid_amount"]
[1724487568857,2.3297,2764.2,2763.7,4.70408803]
[1724487569060,2.3297,2764.2,2763.8,1.25825733]
[1724487569593,2.3297,2764.2,2763.7,4.70408803]
[1724487571703,3.61784,2764.1,2763.7,1.08579803]
[1724487572067,3.61794,2764.0,2763.7,1.08579803]
[1724487572398,9.56522,2764.2,2763.7,0.53579803]
[1724487572597,3.61781,2764.1,2763.7,0.53579803]
[1724487573098,2.3297,2764.2,2763.8,0.53426611]
[1724487573398,2.3297,2764.2,2763.8,4.15244611]
[1724487573596,2.3297,2764.2,2763.8,0.53426611]
[1724487576960,2.3297,2764.2,2763.9,1.25824101]
[1724487577176,2.3297,2764.2,2763.8,0.53426611]
[1724487577378,2.3297,2764.2,2763.9,1.2582356]
[1724487577576,2.3297,2764.2,2763.8,0.53426611]
[1724487577777,2.3297,2764.2,2763.9,1.25823394]
[1724487577978,2.3297,2764.2,2763.8,0.53426611]
[1724487578316,2.3297,2764.2,2763.9,1.25824084]
[1724487578515,2.3297,2764.2,2763.7,4.91244904]
[1724487578686,2.3297,2764.2,2763.8,3.69560205]
[1724487578886,2.3297,2764.2,2763.9,1.25824082]
[1724487579221,2.3297,2764.2,2763.8,0.55]
[1724487579528,2.3297,2764.2,2763.9,1.25824045]
[1724487579680,2.3297,2764.2,2763.8,0.55]
[1724487579883,2.3297,2764.2,2763.9,1.25824045]
[1724487580190,2.3297,2764.2,2763.8,0.266987]
[1724487580392,2.3297,2764.2,2763.9,1.25823922]
[1724487580603,2.3297,2764.2,2763.7,4.37665101]
[1724487580808,2.3297,2764.2,2763.8,3.14559817]
[1724487581034,2.3297,2764.2,2763.9,1.25823927]
[1724487581356,2.3297,2764.2,2763.7,4.37663101]
[1724487581524,2.3297,2764.2,2763.8,3.1455977]
[1724487581712,2.3297,2764.2,2763.9,1.25823908]
[1724487581908,2.3297,2764.2,2763.7,4.37663101]
[1724487582159,2.3297,2764.2,2763.8,3.14559687]
[1724487582308,2.3297,2764.2,2763.9,3.14559687]
[1724487582516,2.3297,2764.2,2763.7,4.37663101]
[1724487582832,2.3297,2764.2,2763.8,3.14559738]
[1724487583026,2.3297,2764.2,2763.9,3.14559738]
[1724487583351,2.3297,2764.2,2763.7,4.37663101]
[1724487583559,2.3297,2764.2,2763.8,3.14559823]
[1724487583714,2.3297,2764.2,2763.9,3.14559823]
[1724487583914,2.3297,2764.2,2763.7,5.69328]
[1724487584114,2.3297,2764.2,2763.8,3.14559762]
[1724487584332,2.3297,2764.2,2763.9,3.14559762]
[1724487584511,2.3297,2764.2,2763.7,5.69328]
[1724487584731,2.3297,2764.2,2763.8,3.14559771]
[1724487584980,2.3297,2764.2,2763.9,3.14559771]
[1724487585140,2.3297,2764.2,2763.8,0.75840101]
[1724487585343,2.3297,2764.2,2763.9,3.14559277]
[1724487585579,2.3297,2764.2,2763.8,0.75840101]
[1724487585737,2.3297,2764.2,2763.9,3.14559275]
[1724487585935,2.3297,2764.2,2763.8,0.75840101]
[1724487586248,2.3297,2764.2,2763.9,3.14559243]
[1724487586482,2.3297,2764.2,2763.8,0.75840101]
[1724487586773,2.3297,2764.2,2763.9,3.14559278]
[1724487587077,2.3297,2764.2,2763.8,0.75840101]
[1724487587231,2.3297,2764.2,2763.9,3.1455898]
[1724487587431,2.3297,2764.2,2763.8,0.75840101]
[1724487587643,2.3297,2764.2,2763.9,3.14559071]
[1724487587848,2.3297,2764.2,2763.8,0.75840101]
[1724487588077,2.3297,2764.2,2763.9,3.14559081]
[1724487588278,2.3297,2764.2,2763.8,0.75840101]
[1724487588585,2.3297,2764.2,2763.9,3.1455896]
[1724487588731,2.3297,2764.2,2763.8,0.75840101]
[1724487588927,2.3297,2764.2,2763.9,3.14558966]
[1724487589134,2.3297,2764.2,2763.8,0.75840101]
[1724487589372,2.3297,2764.2,2763.9,3.14558982]
[1724487589573,2.3297,2764.2,2763.8,0.75840101]
[1724487589873,2.3297,2764.2,2763.9,1.25823592]
[1724487590077,2.3297,2764.2,2763.7,4.37663101]
[1724487590276,2.3297,2764.2,2763.8,3.90400428]
[1724487590436,2.3297,2764.2,2763.9,3.14560327]
[1724487590642,2.3297,2764.2,2763.8,0.75840101]
[1724487590896,2.3297,2764.2,2763.9,3.14558858]
[1724487591177,2.3297,2764.2,2763.8,0.75840101]
[1724487591372,2.3297,2764.2,2763.9,3.14558818]
[1724487591577,2.3297,2764.2,2763.8,0.75840101]
[1724487591778,2.3297,2764.2,2763.9,3.14559188]
[1724487592084,2.3297,2764.2,2764.0,1.25823675]
[1724487592379,2.3297,2764.2,2763.8,0.75840101]
[1724487592578,2.3297,2764.2,2763.9,3.14557417]
[1724487592880,2.3297,2764.2,2763.8,0.75840101]
[1724487592881,2.3297,2764.2,2764.0,1.25822967]
[1724487593037,2.3297,2764.2,2763.8,4.37657101]
[1724487593237,2.3297,2764.2,2763.9,3.14558197]
[1724487593534,2.3297,2764.2,2763.8,4.37657101]
[1724487593535,2.3297,2764.2,2764.0,1.25823279]
[1724487593883,2.3297,2764.2,2763.8,4.37657101]
[1724487594038,2.3297,2764.2,2763.9,3.14557421]
[1724487594241,2.3297,2764.2,2764.0,1.25822968]
[1724487594457,2.3297,2764.2,2763.8,4.37657101]
[1724487594665,2.3297,2764.2,2763.9,3.14557648]
[1724487594841,2.3297,2764.2,2764.0,1.25823059]
[1724487595183,2.3297,2764.2,2763.8,4.37657101]
[1724487595377,2.3297,2764.2,2763.9,3.14556972]
[1724487595692,2.3297,2764.2,2763.8,4.37657101]
[1724487595855,2.3297,2764.2,2763.9,3.14552671]
[1724487596103,2.3297,2764.2,2764.0,1.25821325]
[1724487596422,2.3297,2764.2,2763.8,4.37657101]
[1724487596575,2.3297,2764.2,2763.9,3.90378851]
[1724487596777,2.3297,2764.2,2764.0,3.1453875]
[1724487597089,2.3297,2764.2,2763.9,0.75840101]
[1724487597303,2.3297,2764.2,2764.0,1.2581872]
[1724487597617,2.3297,2764.2,2763.8,4.37653101]
[1724487597814,2.3297,2764.2,2763.9,3.14553411]
[1724487598118,2.3297,2764.2,2764.0,3.14553395]
[1724487598433,11.06736,2764.5,2764.1,3.1453252]
[1724487598434,7.45,2764.5,2764.1,3.1453252]
[1724487598729,3.67849648,2765.9,2764.4,3.61742]
[1724487598730,2.4556,2764.7,2764.4,3.61742]
[1724487598871,2.4556,2764.7,2764.5,3.1453252]
[1724487599068,2.4556,2764.7,2764.6,1.25813008]
[1724487599272,2.4556,2764.7,2764.4,0.75840101]
[1724487599488,2.4556,2764.7,2764.5,1.88697813]
[1724487599749,2.4556,2764.7,2764.3,4.37590101]
[1724487600018,2.4556,2764.7,2764.4,3.14496516]
[1724487600223,2.4556,2764.7,2764.5,3.14496516]
[1724487600367,2.4556,2764.7,2764.3,5.74728584]
[1724487600572,2.4556,2764.7,2764.4,3.90336736]
[1724487600773,2.4556,2764.7,2764.5,3.14496635]
[1724487601091,2.4556,2764.7,2764.3,5.74728584]
[1724487601271,2.4556,2764.7,2764.4,8.87762451]
[1724487601471,9.9056,2764.9,2764.6,3.61707]
[1724487602188,9.9056,2764.9,2764.4,8.59150335]
[1724487602389,9.9056,2764.9,2764.5,3.69493621]
[1724487602719,9.9056,2764.9,2764.6,1.25796508]
[1724487602927,9.9056,2764.9,2764.5,0.55]
[1724487603092,9.9056,2764.9,2764.6,1.25796481]
[1724487603275,9.9056,2764.9,2764.5,1.65375059]
[1724487604825,2.4556,2764.9,2764.5,1.65375059]
[1724487605118,2.4556,2764.9,2764.5,5.27101059]
[1724487606282,2.4556,2764.9,2764.6,3.61714]
[1724487606481,2.4556,2764.9,2764.6,4.50596106]
[1724487609907,3.72576459,2764.9,2764.6,0.88882106]
[1724487610076,3.72576459,2764.9,2764.5,4.16728]
[1724487615085,3.72576459,2764.9,2764.6,3.61715]
[1724487615582,3.72576459,2764.9,2764.6,7.2343]
[1724487615779,3.72576459,2764.9,2764.6,3.61715]
[1724487616231,2.3732,2764.8,2764.6,3.61715]
[1724487616414,2.3732,2764.8,2764.5,4.16724]
[1724487619696,2.3732,2764.8,2764.6,3.61714]
[1724487621235,2.3732,2764.8,2764.6,7.23428]
[1724487621787,2.3732,2764.8,2764.7,3.61702]
[1724487624006,1.27016459,2765.1,2764.8,3.61687]
[1724487624007,2.3582,2765.1,2764.8,3.61687]
[1724487624211,19.45,2765.6,2765.1,3.61638]
[1724487624212,3.62836459,2765.6,2765.1,3.61638]
[1724487624518,2.3582,2765.5,2765.1,3.61638]
[1724487624905,2.3582,2765.5,2765.0,3.61663]
[1724487626200,3.61598,2765.5,2765.0,3.61663]
[1724487626404,3.62836459,2765.4,2765.0,3.61663]
[1724487626831,2.3582,2765.4,2765.0,3.61663]
[1724487627032,2.3582,2765.4,2765.0,4.339977]
[1724487636401,2.3582,2765.4,2765.0,4.339887]
[1724487636624,2.3582,2765.4,2765.1,0.55]
[1724487637344,2.3582,2765.4,2765.2,3.61636]
[1724487646462,2.3582,2765.4,2765.2,7.23264]
[1724487646671,2.3582,2765.4,2765.3,0.778264]
[1724487650375,2.3582,2765.4,2765.3,4.394504]
[1724487658245,2.3582,2765.4,2765.3,3.61624]
[1724487663356,2.3582,2765.4,2765.3,4.87382427]
[1724487663836,2.3582,2765.4,2765.3,6.76022723]
[1724487664039,2.3582,2765.4,2765.3,6.76018621]
[1724487664227,2.3582,2765.4,2765.3,4.87382427]
[1724487665368,2.3582,2765.4,2765.3,6.76022811]
[1724487667359,2.3582,2765.4,2765.3,3.61624]
[1724487667522,2.3582,2765.4,2765.3,6.76021563]
[1724487668318,2.3582,2765.4,2765.3,7.51861664]
[1724487669363,2.476,2765.6,2765.3,8.80088646]
[1724487669566,2.476,2765.6,2765.4,3.14397563]
[1724487669728,2.476,2765.6,2765.3,4.37464101]
[1724487669923,2.476,2765.6,2765.4,3.14399703]
[1724487670128,2.476,2765.6,2765.3,4.37464101]
[1724487670361,2.476,2765.6,2765.4,3.1439923]
[1724487670669,2.476,2765.6,2765.3,4.37464101]
[1724487670867,2.476,2765.6,2765.4,3.14399736]
[1724487671018,2.476,2765.6,2765.3,3.61624]
[1724487671244,2.476,2765.6,2765.4,3.14401486]
[1724487671450,2.476,2765.6,2765.3,4.37464101]
[1724487671649,2.476,2765.6,2765.4,3.14401475]
[1724487671901,2.476,2765.6,2765.3,4.37464101]
[1724487672103,2.476,2765.6,2765.4,3.14396353]
[1724487672391,2.476,2765.6,2765.5,1.25758458]
[1724487674691,2.476,2765.6,2765.3,3.61615]
[1724487674901,2.476,2765.6,2765.4,3.1440485]
[1724487675069,2.476,2765.6,2765.5,1.2576194]
[1724487677349,2.476,2765.6,2765.5,1.25759336]
[1724487681224,2.476,2765.6,2765.5,3.14389089]
[1724487682491,2.476,2765.6,2765.5,3.14382333]
[1724487687326,2.476,2765.6,2765.5,5.502274]
[1724487687516,2.476,2765.6,2765.5,6.75971166]
[1724487688561,2.476,2765.6,2765.5,7.51811267]
[1724487688866,2.476,2765.6,2765.5,6.75971166]
[1724487689868,2.476,2765.6,2765.5,7.51811267]
[1724487690933,2.476,2765.6,2765.5,7.51815394]
[1724487692471,2.476,2765.6,2765.5,7.51817497]
[1724487692634,2.476,2765.6,2765.5,3.14379396]
[1724487693141,2.476,2765.6,2765.5,6.75977396]
[1724487693340,2.3702,2765.9,2765.5,8.74536762]
[1724487693546,2.3702,2765.9,2765.6,3.14379396]
[1724487693771,2.3702,2765.9,2765.7,1.25751758]
[1724487693969,2.3702,2765.9,2765.5,4.37438101]
[1724487694142,2.3702,2765.9,2765.6,3.90204558]
[1724487694346,2.3702,2765.9,2765.5,3.61598]
[1724487694347,2.3702,2765.9,2765.7,1.25745783]
[1724487694555,2.3702,2765.9,2765.5,4.37438101]
[1724487694748,2.3702,2765.9,2765.6,3.14367828]
[1724487694948,2.3702,2765.9,2765.7,1.25747131]
[1724487695145,2.3702,2765.9,2765.5,5.43887447]
[1724487695343,2.3702,2765.9,2765.6,3.1436638]
[1724487695565,2.3702,2765.9,2765.7,3.1436638]
[1724487695727,2.3702,2765.9,2765.5,5.43887447]
[1724487696079,2.3702,2765.9,2765.6,3.80131052]
[1724487696284,2.3702,2765.9,2765.7,1.25746517]
[1724487696492,2.3702,2765.9,2765.5,5.43887447]
[1724487696802,2.3702,2765.9,2765.6,1.88623644]
[1724487696930,2.3702,2765.9,2765.5,5.43887447]
[1724487697334,2.3702,2765.9,2765.6,3.14372767]
[1724487697535,2.3702,2765.9,2765.7,1.25749118]
[1724487697768,2.3702,2765.9,2765.5,5.43887447]
[1724487697951,2.3702,2765.9,2765.6,3.80137507]
[1724487698155,2.3702,2765.9,2765.7,3.14367543]
[1724487698347,2.3702,2765.9,2765.5,4.37438101]
[1724487698550,2.3702,2765.9,2765.6,3.1436442]
[1724487698846,2.3702,2765.9,2765.7,3.1436442]
[1724487699051,2.3702,2765.9,2765.6,0.75840101]
[1724487699344,2.3702,2765.9,2765.7,3.14364723]
[1724487699676,2.3702,2765.9,2765.5,4.37438101]
[1724487699991,2.3702,2765.9,2765.6,3.1436416]
[1724487700168,2.3702,2765.9,2765.7,3.1436416]
[1724487700350,2.3702,2765.9,2765.5,4.37438101]
[1724487700551,2.3702,2765.9,2765.6,3.14364357]
[1724487700891,2.3702,2765.9,2765.7,3.14364357]
[1724487701104,2.3702,2765.9,2765.5,4.37438101]
[1724487701404,3.64036459,2765.9,2765.6,3.14364671]
[1724487701604,3.64036459,2765.9,2765.5,4.37438101]
[1724487701912,3.64036459,2765.9,2765.6,3.14375948]
[1724487702075,3.64036459,2765.9,2765.5,3.61598]
[1724487702283,3.64036459,2765.9,2765.6,1.25752746]
[1724487702485,3.64036459,2765.9,2765.5,3.61598]
[1724487702695,3.64036459,2765.9,2765.6,1.25752746]
[1724487702905,3.64036459,2765.9,2765.5,3.61598]
[1724487703084,3.64036459,2765.9,2765.6,3.14377891]
[1724487703415,3.64036459,2765.9,2765.5,3.61598]
[1724487703706,3.64036459,2765.9,2765.6,3.1437994]
[1724487703880,3.64036459,2765.9,2765.5,3.61598]
[1724487704076,3.64036459,2765.9,2765.6,3.14377226]
[1724487704381,3.64036459,2765.9,2765.7,1.2575089]
[1724487704582,3.64036459,2765.9,2765.5,4.37438101]
[1724487704779,3.64036459,2765.9,2765.6,3.14371992]
[1724487704997,3.64036459,2765.9,2765.7,1.25748797]
[1724487705220,3.64036459,2765.9,2765.5,4.37438101]
[1724487705385,3.64036459,2765.9,2765.6,3.14371992]
[1724487705585,3.64036459,2765.9,2765.5,4.37438101]
[1724487705816,3.64036459,2765.9,2765.6,3.14374043]
[1724487706001,3.64036459,2765.9,2765.5,4.37438101]
[1724487706204,3.64036459,2765.9,2765.6,3.14374043]
[1724487706435,3.64036459,2765.9,2765.5,4.37438101]
[1724487706735,3.64036459,2765.9,2765.6,3.14374932]
[1724487707027,3.64036459,2765.9,2765.5,4.37438101]
[1724487707228,3.64036459,2765.9,2765.6,3.14374896]
[1724487707429,3.64036459,2765.9,2765.5,4.37438101]
[1724487707630,3.64036459,2765.9,2765.6,3.14374942]
[1724487707832,3.64036459,2765.9,2765.5,4.37438101]
[1724487708032,3.64036459,2765.9,2765.6,3.14374942]
[1724487708238,3.64036459,2765.9,2765.5,4.37438101]
[1724487708534,3.64036459,2765.9,2765.6,3.14374942]
[1724487708732,3.64036459,2765.9,2765.5,4.37438101]
[1724487708930,3.64036459,2765.9,2765.6,3.14374963]
[1724487709132,3.64036459,2765.9,2765.5,4.37438101]
[1724487709287,3.64036459,2765.9,2765.6,3.14373924]
[1724487709491,3.64036459,2765.9,2765.7,1.25749559]
[1724487709694,3.64036459,2765.9,2765.5,4.37438101]
[1724487709927,2.3702,2765.9,2765.6,3.14374915]
[1724487710089,2.3702,2765.9,2765.7,1.25749966]
[1724487710291,2.3702,2765.9,2765.5,4.37438101]
[1724487710634,2.3702,2765.9,2765.6,3.90203606]
[1724487710789,2.3702,2765.9,2765.7,3.14363505]
[1724487711138,2.3702,2765.9,2765.8,1.25745402]
[1724487712305,2.3702,2765.9,2765.8,1.25743806]
[1724487713829,2.3702,2765.9,2765.8,1.25744956]
[1724487714351,2.3702,2765.9,2765.6,0.75840101]
[1724487714501,2.3702,2765.9,2765.7,3.14364245]
[1724487714701,2.3702,2765.9,2765.6,0.75840101]
[1724487714901,2.3702,2765.9,2765.7,3.14364582]
[1724487715102,2.3702,2765.9,2765.6,0.75840101]
[1724487715418,2.3702,2765.9,2765.7,3.14365501]
[1724487715745,2.3702,2765.9,2765.5,4.37430101]
[1724487716040,2.3702,2765.9,2765.6,3.14367346]
[1724487716402,3.64036459,2765.9,2765.7,3.14367346]
[1724487716558,3.64036459,2765.9,2765.5,4.37430101]
[1724487716727,3.64036459,2765.9,2765.6,3.14365992]
[1724487716928,3.64036459,2765.9,2765.7,3.14365992]
[1724487717234,3.64036459,2765.9,2765.5,7.99018101]
[1724487717431,3.64036459,2765.9,2765.6,3.90205401]
[1724487717627,3.64036459,2765.9,2765.7,3.143653]
[1724487717960,3.64036459,2765.9,2765.6,0.75840101]
[1724487718161,3.64036459,2765.9,2765.7,3.14363726]
[1724487718361,3.64036459,2765.9,2765.6,0.75840101]
[1724487718561,3.64036459,2765.9,2765.7,3.14364583]
[1724487718761,3.64036459,2765.9,2765.6,0.75840101]
[1724487718928,3.64036459,2765.9,2765.7,3.14364605]
[1724487719128,3.64036459,2765.9,2765.6,0.75840101]
[1724487719360,3.64036459,2765.9,2765.7,3.1436455]
[1724487719568,3.64036459,2765.9,2765.6,0.75840101]
[1724487719861,3.64036459,2765.9,2765.7,1.25745989]
[1724487720060,3.64036459,2765.9,2765.5,4.37429101]
[1724487720268,3.64036459,2765.9,2765.6,3.143782]
[1724487720423,3.64036459,2765.9,2765.7,1.2575128]
[1724487720624,3.64036459,2765.9,2765.5,4.37429101]
[1724487720625,2.2884,2765.8,2765.5,4.37429101]
[1724487720854,2.2884,2765.8,2765.6,3.1438251]
[1724487721052,2.2884,2765.8,2765.7,1.25752025]
[1724487721322,2.2884,2765.8,2765.5,4.37429101]
[1724487721521,7.17428459,2765.7,2765.6,1.25753209]
[1724487721770,2.2884,2765.6,2765.3,0.75840101]
[1724487721972,2.2884,2765.6,2765.4,3.14403557]
[1724487722127,2.2884,2765.6,2765.2,0.75840101]
[1724487722471,2.2884,2765.6,2765.3,3.14407265]
[1724487722771,2.2884,2765.6,2765.4,3.14407265]
[1724487723075,2.2884,2765.6,2765.2,0.75840101]
[1724487723239,2.2884,2765.6,2765.3,3.14407492]
[1724487723439,1.71268757,2765.6,2765.4,1.25762997]
[1724487723643,1.71268757,2765.6,2765.2,0.75840101]
[1724487723941,1.71268757,2765.6,2765.3,3.14406097]
[1724487724141,1.71268757,2765.6,2765.4,3.14406125]
[1724487724339,1.71268757,2765.6,2765.2,4.37469101]
[1724487724557,1.71268757,2765.6,2765.3,3.14401656]
[1724487724869,1.71268757,2765.6,2765.4,1.25760662]
[1724487725071,1.71268757,2765.6,2765.2,4.37469101]
[1724487725387,1.71268757,2765.6,2765.3,3.14404131]
[1724487725532,1.71268757,2765.6,2765.4,1.25761652]
[1724487725724,1.71268757,2765.6,2765.2,4.37469101]
[1724487725920,1.71268757,2765.6,2765.3,3.1440422]
[1724487726172,1.71268757,2765.6,2765.4,1.25761688]
[1724487726386,1.71268757,2765.6,2765.2,4.37469101]
[1724487726579,1.71268757,2765.6,2765.3,3.1440422]
[1724487726878,1.71268757,2765.6,2765.4,1.25761688]
[1724487727033,1.71268757,2765.6,2765.2,4.37469101]
[1724487727227,1.71268757,2765.6,2765.3,3.14404142]
[1724487727428,1.71268757,2765.6,2765.4,1.25761657]
[1724487727732,1.71268757,2765.6,2765.2,4.37469101]
[1724487728058,1.71268757,2765.6,2765.3,3.1440412]
[1724487728254,1.71268757,2765.6,2765.4,1.25761648]
[1724487728458,1.71268757,2765.6,2765.2,5.58756026]
[1724487728770,1.71268757,2765.6,2765.3,3.1440407]
[1724487728981,1.71268757,2765.6,2765.4,1.25761628]
[1724487729145,1.71268757,2765.6,2765.2,5.58756026]
[1724487729327,1.71268757,2765.6,2765.3,3.14401733]
[1724487729529,1.71268757,2765.6,2765.4,1.25760693]
[1724487729728,1.71268757,2765.6,2765.2,4.37469101]
[1724487730083,1.27016459,2765.7,2765.3,3.14404222]
[1724487730226,1.27016459,2765.4,2765.0,0.75840101]
[1724487730427,1.27016459,2765.2,2765.1,3.14436242]
[1724487730732,3.63346459,2765.2,2765.1,1.25775353]
[1724487730949,3.63346459,2765.2,2765.1,3.14437135]
[1724487731334,3.63346459,2765.2,2765.1,1.25775353]
[1724487731835,2.3633,2765.2,2765.1,3.14434447]
[1724487732348,2.3633,2765.2,2765.1,1.25775353]
[1724487734316,2.3633,2765.2,2764.9,7.99174101]
[1724487734512,2.3633,2765.2,2765.0,3.14434458]
[1724487734815,2.3633,2765.2,2764.9,4.78114924]
[1724487735152,2.3633,2765.2,2765.0,3.14436958]
[1724487735337,2.3633,2765.2,2764.9,4.78114924]
[1724487735651,2.3633,2765.2,2765.0,1.25774778]
[1724487735802,2.3633,2765.2,2764.9,4.78114924]
[1724487736002,2.3633,2765.2,2765.0,1.25774245]
[1724487736303,2.3633,2765.2,2764.9,4.78114924]
[1724487736501,2.3633,2765.2,2765.0,1.25774745]
[1724487736743,2.3633,2765.2,2764.9,8.39782924]
[1724487736954,2.3633,2765.2,2765.0,1.25774246]
[1724487737153,2.3633,2765.2,2764.9,8.39782924]
[1724487737313,2.3633,2765.2,2765.0,1.25774251]
[1724487737522,2.3633,2765.2,2764.9,8.39782924]
[1724487737733,2.3633,2765.0,2764.7,0.75840101]
[1724487737935,2.3633,2765.0,2764.8,3.14458305]
[1724487738136,2.3633,2765.0,2764.9,1.257811]
[1724487738333,2.3633,2765.0,2764.6,4.37553101]
[1724487738552,2.3633,2765.0,2764.7,3.14456592]
[1724487738756,2.3633,2765.0,2764.8,3.14456043]
[1724487738929,2.3633,2765.0,2764.9,1.25780306]
[1724487739456,2.3633,2765.0,2764.7,3.61702]
[1724487739662,2.3633,2765.0,2764.8,3.144532]
[1724487739868,2.3633,2765.0,2764.7,3.61702]
[1724487740066,2.3633,2765.0,2764.8,3.7437174]
[1724487740223,2.3633,2765.0,2764.8,0.599168]
[1724487744353,2.3633,2765.0,2764.8,4.216058]
[1724487744735,3.52336459,2765.2,2764.8,4.216058]
[1724487745169,2.2532,2765.2,2765.0,3.61662]
[1724487745349,10.97336459,2765.5,2765.1,0.361662]
[1724487745568,9.7032,2765.5,2765.1,0.361662]
[1724487746371,9.7032,2765.5,2765.2,3.61635]
[1724487746744,7.45,2765.5,2765.2,3.61628]
[1724487746941,7.45,2765.5,2765.3,3.61615]
[1724487747135,7.45,2765.5,2765.3,4.3755592]
[1724487747332,7.45,2765.5,2765.3,0.7594092]
[1724487747576,3.52336459,2765.7,2765.2,3.61627]
[1724487748965,7.13909459,2765.7,2765.2,3.61627]
[1724487752018,3.52336459,2765.7,2765.2,3.61627]
[1724487753314,7.13916459,2765.7,2765.2,3.61627]
[1724487757409,10.75496459,2765.7,2765.2,3.61627]
[1724487757576,10.75496459,2765.7,2765.2,4.4515603]
[1724487757923,3.52336459,2765.5,2765.0,7.99152101]
[1724487758068,3.52336459,2765.5,2765.1,3.69409271]
[1724487758274,3.52336459,2765.5,2765.2,1.25763708]
[1724487758473,3.52336459,2765.5,2765.1,0.55]
[1724487758716,3.61613,2765.4,2765.0,0.75840101]
[1724487759012,5.86933,2765.4,2765.1,3.14427274]
[1724487759319,5.86933,2765.4,2764.9,0.75840101]
[1724487759624,5.86933,2765.4,2765.0,4.66706605]
[1724487759819,5.86933,2765.4,2765.1,3.144187]
[1724487760121,5.86933,2765.4,2765.0,1.52287905]
[1724487760276,5.86933,2765.4,2765.1,3.14418588]
[1724487760476,5.86933,2765.4,2765.0,2.28128006]
[1724487760808,5.86933,2765.4,2765.1,3.14418582]
[1724487761005,5.86933,2765.4,2765.0,2.28128006]
[1724487761327,5.86933,2765.4,2765.1,3.14415095]
[1724487761633,5.86933,2765.4,2765.0,2.28128006]
[1724487761926,5.86933,2765.4,2765.1,3.14422741]
[1724487762142,5.86933,2765.4,2765.0,2.28128006]
[1724487762280,5.86933,2765.4,2765.1,3.14422677]
[1724487762636,5.86933,2765.4,2765.2,1.25769071]
[1724487762843,5.86933,2765.4,2765.0,2.28128006]
[1724487763048,5.86933,2765.4,2765.1,4.09930082]
[1724487763198,2.2532,2765.4,2765.2,1.25767604]
[1724487763399,2.2532,2765.4,2765.1,0.95511072]
[1724487763649,2.2532,2765.4,2765.2,1.25768176]
[1724487763794,2.2532,2765.4,2765.1,0.95511072]
[1724487764094,2.2532,2765.4,2765.2,1.25766576]
[1724487764298,2.2532,2765.4,2765.1,0.95511072]
[1724487764499,2.2532,2765.4,2765.2,1.25766448]
[1724487764748,2.2532,2765.4,2765.1,0.95511072]
[1724487764914,2.2532,2765.4,2765.2,1.2576647]
[1724487765095,2.2532,2765.4,2765.1,0.95511072]
[1724487765305,2.2532,2765.4,2765.2,3.14419669]
[1724487765502,2.2532,2765.4,2765.0,5.89790006]
[1724487765737,2.2532,2765.4,2765.1,3.14423217]
[1724487765907,2.2532,2765.4,2765.2,1.25769287]
[1724487766104,2.2532,2765.4,2765.0,5.89790006]
[1724487766416,2.2532,2765.4,2765.1,3.14423123]
[1724487766753,2.2532,2765.4,2765.2,1.25769249]
[1724487766959,2.2532,2765.4,2765.0,5.89790006]
[1724487767258,2.2532,2765.4,2765.1,4.60611302]
[1724487767544,2.2532,2765.4,2765.2,3.14416185]
[1724487767754,2.2532,2765.4,2765.1,0.70355016]
[1724487768050,2.2532,2765.4,2765.2,3.14420145]
[1724487768208,2.2532,2765.4,2765.1,0.70355016]
[1724487768563,2.2532,2765.4,2765.2,3.14419057]
[1724487768863,2.2532,2765.4,2765.1,1.46195117]
[1724487769001,2.2532,2765.4,2765.2,3.14418055]
[1724487769206,2.2532,2765.4,2765.1,1.46195117]
[1724487769449,2.2532,2765.4,2765.2,3.14418255]
[1724487769602,2.2532,2765.4,2765.1,1.46195117]
[1724487769804,2.2532,2765.4,2765.2,3.14418223]
[1724487770061,2.2532,2765.4,2765.1,1.46195117]
[1724487770209,2.2532,2765.4,2765.2,1.25769534]
[1724487770409,2.2532,2765.4,2765.1,0.70355016]
[1724487770765,2.2532,2765.4,2765.2,1.25769265]
[1724487770911,2.2532,2765.4,2765.1,0.70355016]
[1724487771114,2.2532,2765.4,2765.2,1.25770237]
[1724487771409,2.2532,2765.4,2765.0,5.89790006]
[1724487771753,2.2532,2765.4,2765.1,4.60618704]
[1724487771925,2.2532,2765.4,2765.2,3.14423587]
[1724487772102,2.2532,2765.4,2765.1,0.75840101]
[1724487772311,2.2532,2765.4,2765.2,3.1441939]
[1724487772509,2.2532,2765.4,2765.1,0.75840101]
[1724487772710,2.2532,2765.4,2765.2,1.25766732]
[1724487772930,2.2532,2765.4,2765.0,2.28128006]
[1724487773260,2.2532,2765.4,2765.1,3.14422962]
[1724487773433,2.2532,2765.4,2765.2,1.25769185]
[1724487773633,2.2532,2765.4,2765.0,1.30840101]
[1724487773828,2.2532,2765.4,2765.1,3.14427433]
[1724487774839,2.4623,2765.3,2765.2,1.25770831]
[1724487775340,2.4623,2765.3,2765.2,1.25771497]
[1724487775744,2.4623,2765.3,2765.2,3.14424378]
[1724487776883,2.4623,2765.3,2765.2,1.25771497]
[1724487777046,3.73246459,2765.3,2764.9,0.75840101]
[1724487777255,3.73246459,2765.3,2765.0,3.14440248]
[1724487777552,3.73246459,2765.3,2765.1,1.25776099]
[1724487777745,3.73246459,2765.3,2764.9,0.75840101]
[1724487777947,3.73246459,2765.3,2765.0,3.90277129]
[1724487778266,3.73246459,2765.3,2765.1,3.14437028]
[1724487778446,3.73246459,2765.3,2765.2,1.25774811]
[1724487778945,2.4623,2765.3,2765.0,0.75840101]
[1724487779157,2.4623,2765.3,2765.1,3.14432752]
[1724487779353,2.4623,2765.3,2765.2,1.25773101]
[1724487783183,2.4623,2765.3,2765.2,3.14427411]
[1724487783487,2.4623,2765.3,2765.2,1.25773101]
[1724487784183,2.4623,2765.3,2765.2,3.14423878]
[1724487784681,2.4623,2765.3,2765.2,1.25769551]
[1724487785680,2.4623,2765.3,2765.2,3.1442494]
[1724487786388,2.44310543,2765.3,2765.2,3.1442494]
[1724487787099,2.44310543,2765.3,2765.2,1.25769551]
[1724487787390,2.44310543,2765.3,2765.2,3.14427108]
[1724487788356,2.44310543,2765.3,2765.2,1.25769551]
[1724487788656,2.44310543,2765.3,2765.0,0.75840101]
[1724487788856,2.44310543,2765.3,2765.1,3.1443253]
[1724487789053,2.44310543,2765.3,2765.2,1.25773013]
[1724487789500,2.44310543,2765.3,2765.2,3.14432352]
[1724487793520,2.44310543,2765.3,2765.2,1.25773013]